fUSD/lending_fUSD_20260116
["ID","MTS","AMOUNT","RATE_DAILY","PERIOD"]
[402115886,1768527041861,-500.0,0.00017831,2]
[402115888,1768527041870,-3000.0,0.00017831,2]
[402115890,1768527041878,-500.0,0.00017831,2]
[402115892,1768527041887,-2000.0,0.00017831,2]
[402115894,1768527041897,-500.0,0.00017831,2]
[402115896,1768527041906,-3000.0,0.00017831,2]
[402115898,1768527041915,-500.0,0.00017831,2]
[402115900,1768527041925,-500.0,0.00017831,2]
[402115902,1768527041935,-500.0,0.00017831,2]
[402115904,1768527041945,-500.0,0.00017831,2]
[402115906,1768527041954,-500.0,0.00017831,2]
[402115908,1768527041964,-500.0,0.00017831,2]
[402115910,1768527041974,-500.0,0.00017831,2]
[402115912,1768527041983,-500.0,0.00017831,2]
[402115914,1768527041992,-500.0,0.00017831,2]
[402115916,1768527042002,-500.0,0.00017831,2]
[402115918,1768527042011,-500.0,0.00017831,2]
[402115920,1768527042020,-578.20924308,0.00017831,2]
[402115922,1768527042029,-500.0,0.00017831,2]
[402115924,1768527042039,-589.66560827,0.00017831,2]
[402115926,1768527042048,-500.0,0.00017831,2]
[402115928,1768527042058,-500.0,0.00017831,2]
[402115930,1768527042068,-500.0,0.00017831,2]
[402115932,1768527042077,-500.0,0.00017831,2]
[402115934,1768527042086,-500.0,0.00017831,2]
[402115936,1768527042095,-174.61919143,0.00017831,2]
[402115938,1768527042105,-9000.0,0.00017831,2]
[402115940,1768527042114,-500.0,0.00017831,2]
[402115942,1768527042124,-9000.0,0.00017831,2]
[402115944,1768527042133,-3000.0,0.00017831,2]
[402115946,1768527042142,-3000.0,0.00017831,2]
[402115948,1768527042152,-3000.0,0.00017831,2]
[402115950,1768527042161,-3000.0,0.00017831,2]
[402115952,1768527042171,-1540.14926464,0.00017831,2]
[402115954,1768527042179,-721.12765535,0.00017831,2]
[402115956,1768527042189,-500.0,0.00017879,2]
[402115958,1768527042198,-152.0,0.000179,2]
[402115960,1768527042206,-2408.79642293,0.000179,2]
[402115962,1768527042216,-29954.53817485,0.000179,2]
[402115964,1768527042225,-23098.50224762,0.000179,2]
[402115966,1768527042234,-189.14605105,0.000179,3]
[402115968,1768527042243,-2256.71405876,0.000179,2]
[402115970,1768527042253,-3199.15847882,0.000179,2]
[402115972,1768527042262,-1235.82080343,0.000179,2]
[402115974,1768527042271,-1000.0,0.00017968,2]
[402115976,1768527042280,-386.68582659,0.00017973,2]
[402115978,1768527042290,-321.47728481,0.00017973,2]
[402115980,1768527042299,-500.0,0.00017973,2]
[402115982,1768527042309,-500.0,0.00017973,2]
[402115984,1768527042318,-500.0,0.00017973,2]
[402115986,1768527042327,-300.0,0.00017973,2]
[402115988,1768527042337,-500.0,0.00017973,2]
[402115990,1768527042346,-500.0,0.00017973,2]
[402115992,1768527042355,-500.0,0.00017973,2]
[402115994,1768527042365,-500.0,0.00017973,2]
[402115996,1768527042376,-500.0,0.00017973,2]
[402115997,1768527042386,-500.0,0.00017973,2]
[402115999,1768527042395,-500.0,0.00017973,2]
[402116001,1768527042405,-500.0,0.00017973,2]
[402116003,1768527042414,-500.0,0.00017973,2]
[402116005,1768527042423,-500.0,0.00017973,2]
[402116007,1768527042432,-500.0,0.00017973,2]
[402116009,1768527042441,-500.0,0.00017973,2]
[402116011,1768527042450,-512.58675801,0.00017973,2]
[402116013,1768527042459,-500.0,0.00017973,2]
[402116015,1768527042468,-500.0,0.00017973,2]
[402116017,1768527042478,-500.0,0.00017973,2]
[402116019,1768527042487,-500.0,0.00017973,2]
[402116021,1768527042500,-500.0,0.00017973,2]
[402116023,1768527042511,-500.0,0.00017973,2]
[402116025,1768527042520,-500.0,0.00017973,2]
[402116027,1768527042531,-500.0,0.00017973,2]
[402116030,1768527042540,-500.0,0.00017973,2]
[402116031,1768527042549,-500.0,0.00017973,2]
[402116033,1768527042559,-500.0,0.00017973,2]
[402116036,1768527042569,-500.0,0.00017973,2]
[402116037,1768527042578,-500.0,0.00017973,2]
[402116039,1768527042587,-500.0,0.00017973,2]
[402116041,1768527042596,-500.0,0.00017973,2]
[402116043,1768527042606,-1136.39972605,0.0001799,2]
[402116046,1768527042615,-1136.39972605,0.0001799,2]
[402116048,1768527042624,-500.0,0.00017998,2]
[402116050,1768527042633,-500.0,0.00017999,2]
[402116051,1768527042644,-500.0,0.00017999,2]
[402116053,1768527042654,-500.0,0.00017999,2]
[402116055,1768527042663,-300.0,0.00017999,2]
[402116057,1768527042672,-500.0,0.00017999,2]
[402116059,1768527042681,-500.0,0.00017999,2]
[402116061,1768527042690,-546.11438296,0.00017999,2]
[402116064,1768527042700,-232672.2253746,0.00018,2]
[402116065,1768527042709,-1401.09311542,0.00018,2]
[402116067,1768527042719,-1163802.49421634,0.00018,2]
[402116072,1768527042751,-500.0,0.00015144,2]
[402116074,1768527042760,-2215.9984,0.00018,2]
[402116076,1768527042771,-3015.97416514,0.00018,2]
[402116080,1768527042796,-818625.11596999,0.00018,2]
[402116283,1768527044827,-500.0,0.00015144,2]
[402116285,1768527044837,-62.81443384,0.00015144,2]
[402116442,1768527046373,-337.18556616,0.00015144,2]
[402116443,1768527046383,-250.0,0.00016111,2]
[402116444,1768527046391,-500.0,0.00017999,2]
[402116445,1768527046400,-500.0,0.00017999,2]
[402116446,1768527046409,-199.08137856,0.00017999,2]
[402116447,1768527046417,-500.0,0.00017999,2]
[402116448,1768527046426,-15752.84610541,0.00018,2]
[402116449,1768527046437,-2448.75368629,0.00018,2]
[402116450,1768527046547,-10615.18206708,0.00018,2]
[402116605,1768527093185,978.88988396,0.00014281,2]
[402116606,1768527185226,-197.99917298,0.00014209,2]
[402116607,1768527189467,-320.69241555,0.00014209,2]
[402116608,1768527303890,171.91,0.00028596,120]
[402116609,1768527363713,1201.836,0.00030136,120]
[402116612,1768527431678,-414.300214,0.00014209,2]
[402116613,1768527431709,-1421.94711604,0.00014281,2]
[402116614,1768527431737,-172.088,0.00014281,2]
[402116615,1768527431765,-250.0,0.00014281,2]
[402116616,1768527431792,-298.66013678,0.00014281,2]
[402116617,1768527431819,-341.07185423,0.00014413,2]
[402116618,1768527431846,-1602.51134987,0.00014471,2]
[402116620,1768527432099,-998.85265816,0.00014472,2]
[402116626,1768527434745,-1176.66899969,0.00014472,2]
[402116627,1768527434774,-1200.0,0.00014561,2]
[402116628,1768527434803,-150.0,0.00014561,2]
[402116629,1768527439633,-250.0,0.00014562,2]
[402116630,1768527508655,-152.14592756,0.0001447,2]
[402116631,1768527508683,-603.62007569,0.00014472,2]
[402116632,1768527508713,-300.0,0.00014561,2]
[402116633,1768527508740,-253.50709518,0.00014562,2]
[402116634,1768527508989,-7381.46380314,0.00014562,2]
[402116635,1768527509134,-10000.01,0.00014562,2]
[402116636,1768527509615,-10000.01,0.00014562,2]
[402116637,1768527509755,-10000.01,0.00014562,2]
[402116638,1768527509951,-10000.01,0.00014562,2]
[402116639,1768527510147,-10000.01,0.00014562,2]
[402116640,1768527510189,-10000.01,0.00014562,2]
[402116641,1768527520687,-10000.01,0.00014562,2]
[402116642,1768527520849,-10000.01,0.00014562,2]
[402116643,1768527520984,-754.99191628,0.00014562,2]
[402116644,1768527521039,-8490.02616744,0.00014562,2]
[402116645,1768527536427,2000.0,0.0003,120]
[402116646,1768527579130,600.0,0.0003,120]
[402116647,1768527625600,5000.0,0.0003,120]
[402116648,1768527629213,6474.3,0.00030137,120]
[402116649,1768527699764,1526.0,0.0003012,120]
[402116650,1768527704131,999.0,0.00014091,3]
[402116652,1768527731104,-200.0,0.00014179,2]
[402116653,1768527731199,-9600.01,0.00014472,2]
[402116654,1768527732975,2000.0,0.0003013,120]
[402116655,1768527736615,-2347.28712658,0.00014472,2]
[402116656,1768527736638,-5305.43574684,0.00014472,2]
[402116657,1768527786390,2000.0,0.0003013,120]
[402116658,1768527817462,-1451.28656581,0.00014472,2]
[402116659,1768527817500,-172.089,0.00014562,2]
[402116660,1768527817538,-1920.67,0.00014562,2]
[402116661,1768527817571,-545.96462305,0.00014563,2]
[402116662,1768527817599,-619.98962228,0.0001457,2]
[402116663,1768527817716,-580.01037772,0.0001457,2]
[402116664,1768527818667,195.0,0.000202,30]
[402116665,1768527818861,195.0,0.000202,30]
[402116666,1768527823380,-271.0,0.0001457,2]
[402116667,1768527823410,-150.0,0.0001457,2]
[402116668,1768527823445,-300.0,0.0001457,2]
[402116669,1768527823477,-195.0,0.00014571,2]
[402116670,1768527823506,-333.94924154,0.00014571,2]
[402116671,1768527823534,-500.0,0.00014571,2]
[402116672,1768527823781,-6500.11151692,0.00014571,2]
[402116673,1768527826467,-10000.01,0.00014571,2]
[402116674,1768527846888,1161.01,0.00030137,120]
[402116675,1768527878570,152.92,0.00019178,30]
[402116676,1768527887331,1050.1109162,0.00030137,120]
[402116677,1768527924038,-1852.42,0.00014392,2]
[402116678,1768527924067,-300.0,0.00014471,2]
[402116679,1768527924096,-1200.0,0.00014471,2]
[402116680,1768527924125,-795.17,0.00014471,2]
[402116681,1768527924226,-1704.83,0.00014471,2]
[402116682,1768527924300,-610.15149197,0.00014472,2]
[402116683,1768527924348,-8779.70701606,0.00014472,2]
[402116684,1768527924440,-10000.01,0.00014472,2]
[402116685,1768527925088,-635.26610376,0.00014472,2]
[402116686,1768527925117,-2559.42537759,0.00014511,2]
[402116687,1768527925145,-150.0,0.0001457,2]
[402116688,1768527925171,-250.0,0.00014571,2]
[402116689,1768527926126,-2810.6270373,0.00014571,2]
[402116690,1768527927023,-10000.01,0.00014571,2]
[402116691,1768527938974,-10000.01,0.00014571,2]
[402116692,1768527939309,-4293.61287754,0.00014571,2]
[402116693,1768527939341,-84.09424492,0.00014571,2]
[402116694,1768527940648,-1244.59575508,0.00014571,2]
[402116695,1768527948098,-500.0,0.00014571,2]
[402116696,1768527948125,-500.0,0.00014571,2]
[402116697,1768527948152,-287.7530172,0.00014571,2]
[402116698,1768527948179,-500.0,0.00014571,2]
[402116699,1768527948206,-500.0,0.00014571,2]
[402116700,1768527948233,-500.0,0.00014571,2]
[402116701,1768527948261,-500.0,0.00014571,2]
[402116702,1768527948288,-500.0,0.00014571,2]
[402116703,1768527948315,-500.0,0.00014571,2]
[402116704,1768527948342,-500.0,0.00014571,2]
[402116705,1768527948578,-424.5039656,0.00014571,2]
[402116706,1768527951152,-75.4960344,0.00014571,2]
[402116707,1768527951179,-500.0,0.00014571,2]
[402116708,1768527951206,-500.0,0.00014571,2]
[402116709,1768527951234,-500.0,0.00014571,2]
[402116710,1768527951264,-500.0,0.00014571,2]
[402116711,1768527951293,-342.83668661,0.00014571,2]
[402116712,1768527951321,-500.0,0.00014571,2]
[402116713,1768527951354,-500.0,0.00014571,2]
[402116714,1768527951385,-500.0,0.00014571,2]
[402116715,1768527951413,-595.00834567,0.00014571,2]
[402116716,1768527951443,-473.32786664,0.00014571,2]
[402116717,1768527951646,-26.67213336,0.00014571,2]
[402116718,1768527957460,-500.0,0.00014571,2]
[402116719,1768527957492,-500.0,0.00014571,2]
[402116720,1768527957526,-500.0,0.00014571,2]
[402116721,1768527957558,-500.0,0.00014571,2]
[402116722,1768527957591,-500.0,0.00014571,2]
[402116723,1768527957622,-500.0,0.00014571,2]
[402116724,1768527957656,-500.0,0.00014571,2]
[402116725,1768527957686,-500.0,0.00014571,2]
[402116726,1768527957716,-302.17895227,0.00014571,2]
[402116727,1768527957750,-500.0,0.00014571,2]
[402116728,1768527958062,-395.65209546,0.00014571,2]
[402116729,1768527960747,-104.34790454,0.00014571,2]
[402116730,1768527960782,-500.0,0.00014571,2]
[402116731,1768527960817,-500.0,0.00014571,2]
[402116732,1768527960852,-500.0,0.00014571,2]
[402116733,1768527960882,-500.0,0.00014571,2]
[402116734,1768527960913,-500.0,0.00014571,2]
[402116735,1768527960944,-500.0,0.00014571,2]
[402116736,1768527960974,-500.0,0.00014571,2]
[402116737,1768527961005,-500.0,0.00014571,2]
[402116738,1768527961035,-500.0,0.00014571,2]
[402116739,1768527961067,-291.31419092,0.00014571,2]
[402116740,1768527961406,-208.68580908,0.00014571,2]
[402116747,1768528070182,-161.17307281,0.00014472,2]
[402116748,1768528157583,400.0,0.0003013,120]
[402116749,1768528165524,400.0,0.0003013,120]
[402116750,1768528169254,-3664.470586,0.00014277,2]
[402116751,1768528174118,420.0,0.0003013,120]
[402116752,1768528180460,-10000.01,0.00014277,2]
[402116753,1768528180668,-10000.01,0.00014277,2]
[402116754,1768528180848,-10000.01,0.00014277,2]
[402116755,1768528181004,-488.980586,0.00014277,2]
[402116756,1768528181119,-9022.048828,0.00014277,2]
[402116757,1768528181163,-1200.0,0.00014471,2]
[402116758,1768528181191,-300.0,0.00014471,2]
[402116759,1768528181219,-195.0,0.00014472,2]
[402116760,1768528181880,-6610.01,0.00014472,2]
[402116761,1768528182139,-10000.01,0.00014472,2]
[402116762,1768528182203,-450.36836426,0.00014472,2]
[402116763,1768528182212,-1324.82797398,0.00014472,2]
[402116764,1768528182222,-150.0,0.00014562,2]
[402116765,1768528182231,-151.0,0.00014563,2]
[402116766,1768528182240,-151.0,0.00014563,2]
[402116767,1768528182250,-151.0,0.00014563,2]
[402116768,1768528182259,-201.84989659,0.00014563,2]
[402116769,1768528182268,-151.0,0.00014563,2]
[402116770,1768528182277,-151.0,0.00014563,2]
[402116771,1768528182286,-151.0,0.00014563,2]
[402116772,1768528182296,-151.0,0.00014563,2]
[402116773,1768528182305,-151.0,0.00014563,2]
[402116774,1768528182314,-151.0,0.00014563,2]
[402116775,1768528182324,-151.0,0.00014563,2]
[402116776,1768528182335,-151.0,0.00014563,2]
[402116777,1768528182347,-151.0,0.00014563,2]
[402116778,1768528182357,-151.0,0.00014563,2]
[402116779,1768528182366,-151.0,0.00014563,2]
[402116780,1768528182376,-151.0,0.00014563,2]
[402116781,1768528182387,-151.0,0.00014563,2]
[402116782,1768528182399,-151.0,0.00014563,2]
[402116783,1768528182410,-151.0,0.00014563,2]
[402116784,1768528182421,-151.0,0.00014563,2]
[402116785,1768528182431,-154.10332581,0.00014563,2]
[402116786,1768528182440,-500.0,0.00014563,2]
[402116787,1768528182450,-151.0,0.00014563,2]
[402116788,1768528182459,-151.0,0.00014563,2]
[402116789,1768528182467,-151.0,0.00014563,2]
[402116790,1768528182476,-151.0,0.00014563,2]
[402116791,1768528182486,-151.0,0.00014563,2]
[402116792,1768528182495,-202.30439169,0.00014563,2]
[402116793,1768528182504,-151.0,0.00014563,2]
[402116794,1768528182514,-151.0,0.00014563,2]
[402116795,1768528182523,-151.0,0.00014563,2]
[402116796,1768528182532,-151.0,0.00014563,2]
[402116797,1768528182542,-151.0,0.00014563,2]
[402116798,1768528182552,-161.29469845,0.00014563,2]
[402116799,1768528182562,-500.0,0.00014571,2]
[402116800,1768528182572,-500.0,0.00014571,2]
[402116801,1768528182585,-500.0,0.00014571,2]
[402116802,1768528182596,-503.02366954,0.00014571,2]
[402116803,1768528182606,-473.23767968,0.00014571,2]
[402116804,1768528182950,-32.92888961,0.00014571,2]
[402116805,1768528182962,-500.0,0.00014571,2]
[402116806,1768528182973,-604.54147957,0.00014571,2]
[402116807,1768528182983,-500.0,0.00014571,2]
[402116808,1768528182994,-635.07593505,0.00014571,2]
[402116809,1768528183004,-500.0,0.00014571,2]
[402116810,1768528183013,-500.0,0.00014571,2]
[402116811,1768528183024,-508.16450939,0.00014571,2]
[402116812,1768528183034,-500.0,0.00014571,2]
[402116813,1768528183043,-500.0,0.00014571,2]
[402116814,1768528183053,-500.0,0.00014571,2]
[402116815,1768528183063,-702.77793531,0.00014571,2]
[402116816,1768528183073,-195.0,0.00014572,2]
[402116817,1768528183082,-1000.0,0.00014572,2]
[402116818,1768528183092,-324.0,0.00014632,2]
[402116819,1768528183102,-458.62181078,0.00014671,2]
[402116820,1768528183112,-500.0,0.00014671,2]
[402116821,1768528183123,-501.14381708,0.00014671,2]
[402116822,1768528183133,-1037.75562321,0.00014743,2]
[402116823,1768528183161,-6827.21437679,0.00014743,2]
[402116824,1768528183170,-3172.79562321,0.00014786,2]
[402116825,1768528184198,2628.86,0.0003013,120]
[402116826,1768528184878,-1694.15562321,0.00014786,2]
[402116827,1768528184901,-6611.69875358,0.00014786,2]
[402116828,1768528186094,-10000.01,0.00014853,2]
[402116829,1768528192768,-500.0,0.00014671,2]
[402116830,1768528197425,500.0,0.00014671,2]
[402116831,1768528208025,-1200.0,0.00014852,2]
[402116832,1768528223392,-585.03688025,0.00014853,2]
[402116833,1768528223431,-8329.9362395,0.00014853,2]
[402116834,1768528223589,-500.0,0.00014853,2]
[402116835,1768528223668,-9000.01,0.00014853,2]
[402116836,1768528223977,-1778.45856293,0.00014853,2]
[402116837,1768528224001,-6443.09287414,0.00014853,2]
[402116839,1768528231422,-195.0,0.00014853,2]
[402116840,1768528231431,-273.0,0.00014853,2]
[402116841,1768528231440,-6070.05098953,0.00014951,2]
[402116842,1768528231451,-2303.22682107,0.00014951,2]
[402116843,1768528231463,-1741.21936042,0.00014951,2]
[402116844,1768528231485,-2125.49937606,0.00014951,2]
[402116845,1768528231495,-500.0,0.00015035,2]
[402116846,1768528231504,-500.0,0.00015035,2]
[402116847,1768528231514,-500.0,0.00015043,2]
[402116848,1768528231523,-590.26348019,0.00015043,2]
[402116849,1768528231532,-500.0,0.00015043,2]
[402116850,1768528231541,-240.4003584,0.00015043,2]
[402116851,1768528231553,-259.5996416,0.00015043,2]
[402116852,1768528231562,-251.48588023,0.00015043,2]
[402116853,1768528231577,-248.51411977,0.00015043,2]
[402116854,1768528231586,-477.54251025,0.00015043,2]
[402116855,1768528231595,-500.0,0.00015144,2]
[402116856,1768528231604,-79.34605987,0.00015144,2]
[402116857,1768528231635,-420.65394013,0.00015144,2]
[402116858,1768528231645,-500.0,0.00015144,2]
[402116859,1768528231654,-500.0,0.00015144,2]
[402116860,1768528231663,-500.0,0.00015144,2]
[402116861,1768528231673,-513.5631671,0.00015144,2]
[402116862,1768528231682,-19414.98311975,0.00015234,2]
[402116863,1768528231692,-17221.56143707,0.00015234,2]
[402116864,1768528231701,-511.24268744,0.00015244,2]
[402116865,1768528231711,-1324.82797394,0.00015376,2]
[402116866,1768528231720,-1466.98,0.00015391,2]
[402116867,1768528231730,-530.1594693,0.00015391,2]
[402116868,1768528231740,-500.0,0.00015391,2]
[402116869,1768528231749,-556.30188827,0.00015391,2]
[402116870,1768528231758,-500.0,0.00015391,2]
[402116871,1768528231768,-500.0,0.00015391,2]
[402116872,1768528231777,-500.0,0.00015391,2]
[402116873,1768528231787,-500.0,0.00015391,2]
[402116874,1768528231796,-500.0,0.00015391,2]
[402116875,1768528231805,-500.0,0.00015391,2]
[402116876,1768528231814,-500.0,0.00015391,2]
[402116877,1768528231823,-500.0,0.00015391,2]
[402116878,1768528231832,-500.0,0.00015391,2]
[402116879,1768528231841,-500.0,0.00015391,2]
[402116880,1768528231853,-500.0,0.00015391,2]
[402116881,1768528231862,-500.0,0.00015391,2]
[402116882,1768528231871,-500.0,0.00015391,2]
[402116883,1768528231880,-500.0,0.00015391,2]
[402116884,1768528231890,-500.0,0.00015391,2]
[402116885,1768528231899,-500.0,0.00015391,2]
[402116886,1768528231908,-500.0,0.00015391,2]
[402116887,1768528231919,-500.0,0.00015391,2]
[402116888,1768528231928,-500.0,0.00015391,2]
[402116889,1768528231937,-500.0,0.00015391,2]
[402116890,1768528231946,-500.0,0.00015391,2]
[402116891,1768528231955,-500.0,0.00015391,2]
[402116892,1768528231964,-500.0,0.00015391,2]
[402116893,1768528231974,-500.0,0.00015391,2]
[402116894,1768528231983,-500.0,0.00015391,2]
[402116895,1768528231993,-500.0,0.00015391,2]
[402116896,1768528232004,-500.0,0.00015391,2]
[402116897,1768528232013,-500.0,0.00015391,2]
[402116898,1768528232022,-298.85064677,0.00015391,2]
[402116899,1768528232031,-500.0,0.00015391,2]
[402116900,1768528232040,-500.0,0.00015391,2]
[402116901,1768528232049,-500.0,0.00015391,2]
[402116902,1768528232059,-500.0,0.00015391,2]
[402116903,1768528232069,-500.0,0.00015391,2]
[402116904,1768528232078,-500.0,0.00015391,2]
[402116905,1768528232088,-9000.0,0.00015421,2]
[402116906,1768528232097,-9121.61299997,0.00015421,2]
[402116907,1768528232107,-3000.0,0.00015421,2]
[402116908,1768528232116,-153.65156995,0.00015421,2]
[402116909,1768528232125,-3000.0,0.00015421,2]
[402116910,1768528232135,-3000.0,0.00015421,2]
[402116911,1768528232154,-3000.0,0.00015421,2]
[402116912,1768528232171,-3000.0,0.00015421,2]
[402116913,1768528232182,-2000.0,0.00015421,2]
[402116914,1768528232191,-3000.0,0.00015421,2]
[402116915,1768528232201,-2000.0,0.00015421,2]
[402116916,1768528232210,-3000.0,0.00015421,2]
[402116917,1768528232219,-2000.0,0.00015421,2]
[402116918,1768528232228,-3000.0,0.00015421,2]
[402116919,1768528232238,-2000.0,0.00015421,2]
[402116920,1768528232247,-3000.0,0.00015421,2]
[402116921,1768528232256,-2000.0,0.00015421,2]
[402116922,1768528232265,-3000.0,0.00015421,2]
[402116923,1768528232274,-2000.0,0.00015421,2]
[402116924,1768528232284,-3000.0,0.00015421,2]
[402116925,1768528232293,-2000.0,0.00015421,2]
[402116926,1768528232303,-2000.0,0.00015421,2]
[402116927,1768528232312,-2000.0,0.00015421,2]
[402116928,1768528232321,-2000.0,0.00015421,2]
[402116929,1768528232330,-500.0,0.00015421,2]
[402116930,1768528232339,-2000.0,0.00015421,2]
[402116931,1768528232349,-500.0,0.00015421,2]
[402116932,1768528232359,-500.0,0.00015421,2]
[402116933,1768528232368,-500.0,0.00015421,2]
[402116934,1768528232376,-3000.0,0.00015421,2]
[402116935,1768528232386,-500.0,0.00015421,2]
[402116936,1768528232395,-3000.0,0.00015421,2]
[402116937,1768528232405,-612.57082655,0.00015421,2]
[402116938,1768528232414,-500.0,0.00015421,2]
[402116939,1768528232424,-500.0,0.00015421,2]
[402116940,1768528232433,-3000.0,0.00015421,2]
[402116941,1768528232442,-500.0,0.00015421,2]
[402116942,1768528232451,-500.0,0.00015421,2]
[402116943,1768528232461,-3000.0,0.00015421,2]
[402116944,1768528232470,-500.0,0.00015421,2]
[402116945,1768528232479,-500.0,0.00015421,2]
[402116946,1768528232488,-1609.13658287,0.00015421,2]
[402116947,1768528232498,-1061.24408735,0.00015421,2]
[402116948,1768528232507,-500.0,0.00015421,2]
[402116949,1768528232516,-500.0,0.00015421,2]
[402116950,1768528232525,-500.0,0.00015421,2]
[402116951,1768528232533,-500.0,0.00015421,2]
[402116952,1768528232542,-177.72949484,0.00015421,2]
[402116953,1768528232552,-602.58742295,0.00015421,2]
[402116954,1768528232561,-500.0,0.00015421,2]
[402116955,1768528232570,-500.0,0.00015421,2]
[402116956,1768528232580,-500.0,0.00015421,2]
[402116957,1768528232589,-500.0,0.00015421,2]
[402116958,1768528232599,-500.0,0.00015421,2]
[402116959,1768528232608,-500.0,0.00015421,2]
[402116960,1768528232617,-500.0,0.00015421,2]
[402116961,1768528232626,-500.0,0.00015421,2]
[402116962,1768528232635,-732.53437282,0.00015421,2]
[402116963,1768528232644,-500.0,0.00015421,2]
[402116964,1768528232654,-500.0,0.00015421,2]
[402116965,1768528232664,-500.0,0.00015421,2]
[402116966,1768528232673,-500.0,0.00015421,2]
[402116967,1768528232682,-500.0,0.00015421,2]
[402116968,1768528232691,-500.0,0.00015421,2]
[402116969,1768528232701,-500.0,0.00015421,2]
[402116970,1768528232710,-500.0,0.00015421,2]
[402116971,1768528232719,-586.88085669,0.00015421,2]
[402116972,1768528232728,-2500.0,0.00015421,2]
[402116973,1768528232737,-2500.0,0.00015421,2]
[402116974,1768528232747,-2500.0,0.00015421,2]
[402116975,1768528232756,-2500.0,0.00015421,2]
[402116976,1768528232766,-2500.0,0.00015421,2]
[402116977,1768528232776,-2500.0,0.00015421,2]
[402116978,1768528232785,-2500.0,0.00015421,2]
[402116979,1768528232795,-2500.0,0.00015421,2]
[402116980,1768528232804,-2500.0,0.00015421,2]
[402116981,1768528232812,-2500.0,0.00015421,2]
[402116982,1768528232822,-2500.0,0.00015421,2]
[402116983,1768528232831,-151.0,0.00015516,2]
[402116984,1768528232839,-151.0,0.00015516,2]
[402116985,1768528232851,-229.54567432,0.00015527,2]
[402116986,1768528232861,-151.0,0.00015528,2]
[402116987,1768528232870,-151.0,0.00015528,2]
[402116988,1768528232878,-19414.98311975,0.00015615,2]
[402116989,1768528232887,-17221.56143707,0.00015615,2]
[402116990,1768528232897,-1782.65659624,0.0001564,2]
[402116991,1768528232906,-1466.98,0.00015665,2]
[402116992,1768528232914,-255.0,0.00015684,2]
[402116993,1768528232924,-151.0,0.00015702,2]
[402116994,1768528232933,-151.0,0.00015702,2]
[402116995,1768528232942,-419.0,0.00015706,2]
[402116996,1768528232951,-151.0,0.00015708,2]
[402116997,1768528232960,-151.0,0.00015708,2]
[402116998,1768528232969,-419.0,0.00015761,2]
[402116999,1768528232977,-419.0,0.00015816,2]
[402117000,1768528232986,-199.41,0.00015832,2]
[402117001,1768528232995,-17849.79,0.00015842,2]
[402117002,1768528233004,-420.0,0.00015846,2]
[402117003,1768528233013,-419.0,0.0001587,2]
[402117004,1768528233022,-238.86998272,0.00015885,2]
[402117005,1768528233031,-1000.0,0.00015918,2]
[402117006,1768528233041,-250.0,0.00015918,2]
[402117007,1768528233050,-300.0,0.00015918,2]
[402117008,1768528233060,-2500.0,0.00015918,2]
[402117009,1768528233068,-300.0,0.00015918,2]
[402117010,1768528233078,-195.0,0.00015918,2]
[402117011,1768528233087,-250.0,0.00015918,2]
[402117012,1768528233095,-419.0,0.00015925,2]
[402117013,1768528233104,-1466.98,0.00015939,2]